bitfinex/quotes_SOLUSD_20250917
["timestamp","ask_amount","ask_price","bid_price","bid_amount"]
[1758127427682,0.57,234.36,234.35,13.59559401]
[1758127428461,0.57,234.39,234.35,19.40742354]
[1758127428681,1.5448157,234.44,234.39,13.59559401]
[1758127428876,0.57,234.43,234.39,13.59559401]
[1758127429069,0.57,234.42,234.39,13.59559401]
[1758127429272,0.57,234.41,234.39,13.59559401]
[1758127429575,33.31,234.44,234.39,13.59559401]
[1758127429778,0.57,234.43,234.39,13.59559401]
[1758127429967,2.1148157,234.42,234.33,13.59559401]
[1758127430161,2.1148157,234.42,234.36,13.59559401]
[1758127431184,2.1148157,234.42,234.36,17.86246808]
[1758127431563,0.57,234.41,234.36,17.86246808]
[1758127432465,1.5448157,234.39,234.36,17.86246808]
[1758127433185,1.5448157,234.39,234.36,18.58246808]
[1758127433685,1.5448157,234.37,234.35,13.59559401]
[1758127434094,1.5448157,234.37,234.35,14.31559401]
[1758127434269,1.5448157,234.37,234.36,0.72]
[1758127434762,4.26604187,234.41,234.36,0.72]
[1758127434966,1.5448157,234.38,234.36,0.72]
[1758127435382,1.5448157,234.38,234.35,13.59559401]
[1758127435583,1.5448157,234.38,234.35,4.98708102]
[1758127436576,1.5448157,234.38,234.37,13.59559401]
[1758127437679,1.5448157,234.38,234.34,4.95730391]
[1758127437889,2.41198235,234.38,234.34,4.95730391]
[1758127438092,37.55607988,234.41,234.34,4.95730391]
[1758127438273,2.41198235,234.36,234.34,4.95730391]
[1758127438587,2.41198235,234.36,234.35,17.86271583]
[1758127439189,2.41198235,234.36,234.35,18.55271583]
[1758127439389,2.41198235,234.36,234.35,17.86271583]
[1758127439586,2.41198235,234.36,234.35,13.59559401]
[1758127439788,2.41198235,234.36,234.35,17.86271583]
[1758127440683,2.41198235,234.36,234.35,13.59559401]
[1758127442176,2.41198235,234.36,234.35,18.55271583]
[1758127444098,32.75,234.38,234.36,13.59559401]
[1758127444300,2.41198235,234.37,234.36,13.59559401]
[1758127444474,2.41198235,234.37,234.35,4.95712182]
[1758127444903,2.41198235,234.36,234.34,13.59559401]
[1758127445090,2.41198235,234.36,234.35,14.27559401]
[1758127447576,2.41198235,234.36,234.35,13.59559401]
[1758127448801,2.41198235,234.36,234.35,14.27559401]
[1758127450388,2.41198235,234.36,234.35,13.59559401]
[1758127450694,2.41198235,234.36,234.35,14.27559401]
[1758127452902,35.13198235,234.36,234.35,14.27559401]
[1758127455508,2.41198235,234.36,234.35,18.54271583]
[1758127455703,2.44198235,234.38,234.36,13.59559401]
[1758127456003,32.72,234.37,234.36,13.59559401]
[1758127456403,32.72,234.37,234.36,18.54253376]
[1758127457596,35.16198235,234.38,234.36,18.54253376]
[1758127457798,35.16198235,234.38,234.37,0.68]
[1758127459288,35.16198235,234.38,234.37,14.27559401]
[1758127459589,35.73198235,234.38,234.37,13.59559401]
[1758127462813,35.16198235,234.38,234.37,13.59559401]
[1758127463012,2.44198235,234.38,234.37,13.59559401]
[1758127463218,35.16198235,234.38,234.37,13.59559401]
[1758127466415,32.75,234.38,234.37,13.59559401]
[1758127466621,35.16198235,234.38,234.37,13.59559401]
[1758127470118,2.44198235,234.38,234.37,13.59559401]
[1758127470322,35.16198235,234.38,234.37,13.59559401]
[1758127472012,39.99855799,234.38,234.37,13.59559401]
[1758127472315,37.58657564,234.38,234.37,13.59559401]
[1758127472520,2.44198235,234.38,234.37,13.59559401]
[1758127472698,35.16198235,234.38,234.37,13.59559401]
[1758127476030,2.44198235,234.38,234.37,14.26559401]
[1758127476207,35.16198235,234.38,234.37,13.59559401]
[1758127478030,0.03,234.38,234.37,14.26559401]
[1758127478320,0.03,234.38,234.37,18.5323517]
[1758127488335,3.01198235,234.38,234.37,13.59559401]
[1758127488722,3.01198235,234.38,234.3,0.67]
[1758127488913,3.01198235,234.38,234.33,13.59559401]
[1758127488914,0.6,234.38,234.33,13.59559401]
[1758127489109,0.6,234.38,234.32,12.81914326]
[1758127489110,0.57,234.37,234.32,12.81914326]
[1758127489335,33.29,234.36,234.32,12.81914326]
[1758127489630,0.57,234.35,234.29,13.59559401]
[1758127489828,4.8371888,234.35,234.29,14.26559401]
[1758127490012,2.41198235,234.3,234.29,18.53371318]
[1758127490213,35.13198235,234.3,234.29,18.53371318]
[1758127490628,35.70198235,234.3,234.27,13.59559401]
[1758127490938,2.41198235,234.28,234.27,13.59559401]
[1758127491224,35.13198235,234.28,234.27,13.59559401]
[1758127491431,35.13198235,234.28,234.27,14.26559401]
[1758127491732,32.72,234.28,234.27,14.26559401]
[1758127491926,35.13198235,234.28,234.27,14.26559401]
[1758127492731,32.72,234.28,234.27,14.26559401]
[1758127492912,35.13198235,234.28,234.27,14.26559401]
[1758127493735,35.13198235,234.28,234.27,13.59559401]
[1758127495514,35.13198235,234.28,234.27,14.26559401]
[1758127496736,0.57,234.39,234.27,20.94615535]
[1758127496934,0.57,234.39,234.3,13.59559401]
[1758127496935,35.13198235,234.37,234.3,13.59559401]
[1758127497115,35.13198235,234.37,234.32,13.59559401]
[1758127497310,35.70198235,234.37,234.32,14.31559401]
[1758127497523,32.72,234.36,234.32,14.31559401]
[1758127497735,32.72,234.36,234.34,13.59559401]
[1758127498113,35.13198235,234.36,234.32,13.59559401]
[1758127498315,2.98198235,234.35,234.32,13.59559401]
[1758127498516,32.72,234.34,234.3,13.59559401]
[1758127498830,32.72,234.34,234.32,13.59559401]
[1758127500134,32.72,234.34,234.31,13.59559401]
[1758127500315,32.72,234.34,234.33,13.59559401]
[1758127501343,34.26411468,234.34,234.33,13.59559401]
[1758127501646,32.72,234.34,234.33,13.59559401]
[1758127502342,39.10141859,234.34,234.27,13.59559401]
[1758127502539,1.54411468,234.28,234.27,13.59559401]
[1758127502738,34.26411468,234.28,234.26,13.65559401]
[1758127502923,1.54411468,234.27,234.26,13.65559401]
[1758127503238,1.54411468,234.27,234.26,0.06]
[1758127503435,2.11411468,234.27,234.26,0.06]
[1758127504541,1.54411468,234.27,234.26,0.06]
[1758127504724,5.81269367,234.27,234.26,0.06]
[1758127504920,34.26411468,234.27,234.26,0.06]
[1758127505122,4.26839722,234.28,234.27,13.59559401]
[1758127505123,1.54411468,234.28,234.27,13.59559401]
[1758127505336,32.74,234.28,234.27,14.28559401]
[1758127505835,32.74,234.28,234.27,13.59559401]
[1758127506142,32.74,234.28,234.27,14.28559401]
[1758127506617,34.85411468,234.28,234.26,0.06]
[1758127506821,1.54411468,234.27,234.26,0.06]
[1758127507727,2.11411468,234.27,234.26,0.06]
[1758127508326,1.54411468,234.27,234.26,0.06]
[1758127508835,5.81269367,234.27,234.26,0.06]
[1758127510537,6.38269367,234.27,234.26,0.06]
[1758127511035,9.63726996,234.27,234.26,0.06]
[1758127512535,14.269614,234.27,234.26,0.06]
[1758127514627,7.52315528,234.27,234.26,0.06]
[1758127514935,34.30411468,234.27,234.26,13.65559401]
[1758127515532,1.54411468,234.27,234.26,14.34559401]
[1758127515737,34.30411468,234.27,234.26,14.34559401]
[1758127515952,1.54411468,234.27,234.26,14.34559401]
[1758127516253,34.30411468,234.27,234.26,14.34559401]
[1758127516746,26.0,234.31,234.27,13.59559401]
[1758127516747,1.54411468,234.28,234.27,13.59559401]
[1758127516956,34.32411468,234.28,234.27,14.28559401]
[1758127517251,34.32411468,234.28,234.26,0.06]
[1758127517450,1.54411468,234.27,234.26,0.75]
[1758127519353,1.54411468,234.27,234.26,14.34559401]
[1758127519544,1.54411468,234.3,234.27,13.59559401]
[1758127519745,1.54411468,234.31,234.29,13.59559401]
[1758127520045,32.76,234.3,234.27,13.59559401]
[1758127520246,32.76,234.29,234.27,13.59559401]
[1758127520440,32.76,234.29,234.28,14.28559401]
[1758127520641,1.57411468,234.34,234.29,13.59559401]
[1758127520843,34.30411468,234.33,234.3,0.69]
[1758127521036,1.54411468,234.32,234.27,13.59559401]
[1758127521247,1.54411468,234.32,234.28,0.69]
[1758127521448,1.54411468,234.32,234.3,13.59559401]
[1758127521655,32.76,234.33,234.32,13.59559401]
[1758127521850,34.30411468,234.33,234.32,13.59559401]
[1758127522038,39.14162229,234.33,234.3,13.59559401]
[1758127522238,37.02750761,234.33,234.28,13.59559401]
[1758127522447,1.54411468,234.31,234.3,13.59559401]
[1758127522750,1.54411468,234.31,234.3,14.28559401]
[1758127523735,32.78,234.32,234.3,18.55361214]
[1758127524041,32.78,234.32,234.31,14.28559401]
[1758127524747,32.82,234.32,234.31,14.28559401]
[1758127525132,1.57411468,234.34,234.31,14.28559401]
[1758127525337,1.54411468,234.32,234.31,13.59559401]
[1758127525537,1.54411468,234.32,234.31,14.28559401]
[1758127526044,1.54411468,234.32,234.31,13.59559401]
[1758127526245,34.36411468,234.32,234.31,13.59559401]
[1758127526450,32.82,234.32,234.31,13.59559401]
[1758127526654,34.36411468,234.32,234.31,13.59559401]
[1758127528462,1.54411468,234.32,234.31,13.59559401]
[1758127528662,34.36411468,234.32,234.31,13.59559401]
[1758127530681,38.63178282,234.32,234.31,13.59559401]
[1758127530853,32.82,234.32,234.31,13.59559401]
[1758127531046,34.36411468,234.32,234.31,13.59559401]
[1758127531767,34.39411468,234.32,234.31,13.59559401]
[1758127532274,0.03,234.32,234.31,14.28559401]
[1758127532473,32.83,234.32,234.31,18.55344429]
[1758127532853,0.03,234.32,234.31,20.09755897]
[1758127534284,0.03,234.32,234.31,18.55344429]
[1758127534576,0.03,234.32,234.31,20.52434399]
[1758127537860,0.03,234.32,234.31,20.09755897]
[1758127539085,0.03,234.32,234.31,20.52434399]
[1758127539802,0.03,234.35,234.34,39.59559401]
[1758127540107,0.03,234.35,234.34,41.13970869]
[1758127540275,0.03,234.35,234.34,41.82970869]
[1758127541080,0.03,234.35,234.34,46.0970126]
[1758127543983,0.03,234.37,234.34,56.76527239]
[1758127544304,0.03,234.37,234.36,15.13970869]
[1758127544784,0.03,234.37,234.36,15.82970869]
[1758127545878,0.03,234.37,234.36,20.09664844]
[1758127546190,0.03,234.37,234.36,18.55253376]
[1758127546394,0.03,234.37,234.36,13.59559401]
[1758127546692,2.14411468,234.37,234.36,13.59559401]
[1758127549895,32.93,234.37,234.36,13.59559401]
[1758127550904,0.03,234.37,234.36,13.59559401]
[1758127551074,32.93,234.37,234.36,13.59559401]
[1758127551280,33.5,234.37,234.36,13.59559401]
[1758127551986,32.93,234.37,234.36,13.59559401]
[1758127553805,34.47411468,234.37,234.36,13.59559401]
[1758127554206,1.57411468,234.37,234.36,13.59559401]
[1758127554390,34.45411468,234.37,234.36,13.59559401]
[1758127554700,32.91,234.37,234.36,13.59559401]
[1758127557412,0.03,234.37,234.36,13.59559401]
[1758127557587,32.91,234.37,234.36,13.59559401]
[1758127559507,35.02411468,234.37,234.36,13.59559401]
[1758127559806,35.89256503,234.37,234.36,13.59559401]
[1758127561204,35.89256503,234.37,234.27,0.71]
[1758127561205,40.15932272,234.37,234.27,0.71]
[1758127561404,2.41256503,234.29,234.28,13.59559401]
[1758127561605,32.88,234.29,234.28,13.59559401]
[1758127561990,32.88,234.29,234.28,4.97838597]
[1758127562605,2.41256503,234.33,234.28,4.97838597]
[1758127562788,32.88,234.32,234.29,0.71]
[1758127563189,32.88,234.32,234.28,4.26838597]
[1758127563389,32.88,234.32,234.29,13.59559401]
[1758127564821,35.29256503,234.32,234.29,13.59559401]
[1758127565730,35.29256503,234.32,234.27,13.59559401]
[1758127565731,2.41256503,234.3,234.27,13.59559401]
[1758127565935,2.41256503,234.28,234.26,0.06]
[1758127566141,2.41256503,234.29,234.27,13.59559401]
[1758127566329,32.86,234.28,234.27,13.59559401]
[1758127566709,32.86,234.28,234.26,0.06]
[1758127566915,35.27256503,234.28,234.26,0.06]
[1758127567132,35.84256503,234.28,234.26,0.06]
[1758127567447,35.27256503,234.28,234.26,0.06]
[1758127568038,35.27256503,234.28,234.26,13.65559401]
[1758127568252,2.98256503,234.27,234.26,0.06]
[1758127569935,7.25114402,234.27,234.26,0.06]
[1758127571422,40.13114402,234.27,234.26,0.06]
[1758127572554,35.86256503,234.27,234.26,0.06]
[1758127573347,40.13114402,234.27,234.26,0.06]
[1758127574956,39.56114402,234.27,234.26,0.06]
[1758127576564,4.26857899,234.27,234.26,0.06]
[1758127576757,39.54114402,234.27,234.26,0.06]
[1758127577142,40.11114402,234.27,234.26,0.06]
[1758127581357,7.25114402,234.27,234.26,0.06]
[1758127581540,40.11114402,234.27,234.26,0.06]
[1758127581743,6.68114402,234.27,234.26,0.06]
[1758127581937,40.11114402,234.27,234.26,0.06]
[1758127584369,42.52370905,234.27,234.26,1e-08]
[1758127584549,9.66370905,234.27,234.25,1e-08]
[1758127584739,37.68513006,234.26,234.25,1e-08]
[1758127585152,38.25513006,234.26,234.25,1e-08]
[1758127585360,39.96603063,234.26,234.25,1e-08]
[1758127585853,44.23479183,234.26,234.25,1e-08]
[1758127586770,67.8222268,234.26,234.25,1e-08]
[1758127587065,41.8222268,234.26,234.25,1e-08]
[1758127587869,44.23479183,234.26,234.25,1e-08]
[1758127588074,41.8222268,234.26,234.25,1e-08]
[1758127590264,44.23479183,234.26,234.25,1e-08]
[1758127595895,26.0,234.24,234.23,0.06]
[1758127596094,26.0,234.21,234.11,0.06]
[1758127596396,28.41256503,234.17,234.15,0.72]
[1758127596568,61.29256503,234.17,234.16,0.78]
[1758127596758,2.41256503,234.17,234.16,0.78]
[1758127596953,35.29256503,234.17,234.16,0.78]
[1758127597758,35.27256503,234.17,234.16,0.78]
[1758127598097,39.54296687,234.17,234.16,0.78]
[1758127599777,65.54296687,234.17,234.16,0.78]
[1758127599988,39.54296687,234.17,234.16,0.78]
[1758127600294,39.54296687,234.17,234.16,0.06]
[1758127601483,39.54296687,234.17,234.16,0.78]
[1758127602178,6.68296687,234.17,234.16,0.78]
[1758127602391,65.54296687,234.17,234.16,0.78]
[1758127602686,65.54296687,234.17,234.16,0.06]
[1758127602869,37.13040184,234.17,234.16,0.06]
[1758127603184,67.84459956,234.17,234.16,0.06]
[1758127605087,67.27459956,234.17,234.16,0.06]
[1758127605791,34.39459956,234.17,234.16,0.06]
[1758127606089,67.27459956,234.17,234.16,0.06]
[1758127606673,67.84459956,234.17,234.16,0.06]
[1758127606985,67.27459956,234.17,234.16,0.06]
[1758127608070,31.98203453,234.17,234.16,0.06]
[1758127608275,67.27459956,234.17,234.16,0.78]
[1758127608476,67.27459956,234.17,234.16,0.06]
[1758127611590,31.98203453,234.17,234.16,0.78]
[1758127611793,32.68296687,234.17,234.16,0.78]
[1758127612201,65.56296687,234.17,234.16,0.78]
[1758127612402,39.56296687,234.17,234.16,0.78]
[1758127612976,65.54296687,234.17,234.16,0.78]
[1758127613308,39.54296687,234.17,234.16,0.78]
[1758127613686,32.68296687,234.17,234.16,0.78]
[1758127614310,65.54296687,234.17,234.16,0.78]
[1758127614505,65.54296687,234.17,234.16,0.06]
[1758127614976,30.27040184,234.17,234.16,0.78]
[1758127615176,65.54296687,234.17,234.16,0.78]
[1758127616111,26.0,234.17,234.16,0.78]
[1758127616405,32.88,234.17,234.16,0.78]
[1758127616604,35.29256503,234.17,234.16,0.06]
[1758127617193,35.29256503,234.17,234.16,0.76]
[1758127618113,39.56296687,234.17,234.16,0.76]
[1758127618495,37.15040184,234.17,234.16,0.76]
[1758127618723,4.27040184,234.17,234.16,0.76]
[1758127619014,37.15040184,234.17,234.16,0.76]
[1758127619788,32.88,234.17,234.16,0.76]
[1758127621084,37.15040184,234.17,234.16,0.76]
[1758127621615,32.88,234.17,234.16,0.76]
[1758127621993,5.81641333,234.19,234.16,0.76]
[1758127622185,32.86,234.18,234.16,0.76]
[1758127622717,38.67657394,234.18,234.17,0.7]
[1758127623694,37.13022296,234.18,234.17,0.7]
[1758127623896,58.86,234.18,234.17,0.7]
[1758127624785,32.86,234.18,234.17,0.7]
[1758127627004,34.40635098,234.18,234.17,0.7]
[1758127628739,38.67657046,234.18,234.16,0.06]
[1758127629019,1.54635098,234.17,234.16,0.06]
[1758127629898,27.54635098,234.17,234.16,0.74]
[1758127630122,58.84,234.17,234.16,0.74]
[1758127630415,26.0,234.19,234.16,14.33559401]
[1758127630729,32.84,234.18,234.17,14.27559401]
[1758127631110,32.84,234.18,234.17,0.68]
[1758127631500,34.38635098,234.18,234.16,0.06]
[1758127631822,34.38635098,234.18,234.16,0.74]
[1758127632210,1.54635098,234.17,234.16,0.06]
[1758127632409,5.81675282,234.17,234.16,0.06]
[1758127635263,38.65675282,234.17,234.16,0.06]
[1758127635557,39.22675282,234.17,234.16,0.06]
[1758127635867,38.65675282,234.17,234.16,0.06]
[1758127640247,40.36816581,234.17,234.16,0.06]
[1758127643056,66.34816581,234.17,234.16,0.74]
[1758127644369,66.34816581,234.17,234.16,0.06]
[1758127644752,33.52816581,234.17,234.16,0.06]
[1758127644968,4.29988405,234.2,234.16,0.74]
[1758127645168,32.84,234.19,234.17,13.59559401]
[1758127645371,32.84,234.19,234.18,14.27559401]
[1758127647169,32.84,234.19,234.18,0.68]
[1758127648875,0.03,234.2,234.18,6.49654225]
[1758127649050,0.03,234.2,234.19,13.59559401]
[1758127649252,32.87,234.2,234.19,15.82194499]
[1758127649550,32.87,234.2,234.19,14.27559401]
[1758127649767,32.87,234.2,234.19,15.82194499]
[1758127650268,32.87,234.2,234.19,20.09198213]
[1758127650972,0.03,234.2,234.19,20.09198213]
[1758127651178,32.87,234.2,234.19,20.09198213]
[1758127652264,0.03,234.2,234.19,20.09198213]
[1758127652581,32.87,234.2,234.19,20.09198213]
[1758127653152,0.03,234.2,234.19,20.09198213]
[1758127654371,0.03,234.2,234.19,32.91825033]
[1758127654668,0.03,234.2,234.19,20.09198213]
[1758127656174,0.03,234.2,234.19,46.09198213]
[1758127656470,0.03,234.23,234.2,13.59559401]
[1758127656673,0.03,234.23,234.22,15.14194499]
[1758127657067,0.03,234.23,234.22,15.82194499]
[1758127658158,0.03,234.23,234.22,20.09143521]
[1758127660667,0.03,234.25,234.23,13.59559401]
[1758127660980,0.03,234.25,234.24,15.14194499]
[1758127661171,0.03,234.25,234.24,15.82194499]
[1758127661694,0.03,234.25,234.24,13.59559401]
[1758127662583,0.03,234.25,234.24,15.14194499]
[1758127662890,32.85,234.25,234.24,15.82194499]
[1758127663789,32.85,234.25,234.24,20.09107067]
[1758127664281,32.85,234.25,234.24,15.82194499]
[1758127664662,32.85,234.25,234.24,20.09107067]
[1758127665590,0.03,234.26,234.24,26.27647459]
[1758127665779,32.85,234.29,234.28,15.14194499]
[1758127665981,32.85,234.29,234.28,15.82194499]
[1758127666186,0.03,234.29,234.28,15.82194499]
[1758127666489,0.03,234.29,234.28,20.09034178]
[1758127669191,0.03,234.29,234.28,21.79985308]
[1758127672900,0.03,234.29,234.28,22.22669275]
[1758127673211,0.03,234.34,234.28,22.22669275]
[1758127673212,0.03,234.34,234.31,39.59559401]
[1758127673378,0.03,234.37,234.33,15.14194499]
[1758127673699,0.03,234.37,234.35,13.59559401]
[1758127673870,0.03,234.4,234.38,13.59559401]
[1758127674077,0.03,234.4,234.39,15.14194499]
[1758127675207,0.03,234.4,234.39,19.4083386]
[1758127675385,0.03,234.4,234.39,15.14194499]
[1758127676206,0.03,234.4,234.39,19.4083386]
[1758127676511,0.03,234.4,234.39,20.0883386]
[1758127680376,0.03,234.4,234.39,21.7970466]
[1758127680608,0.03,234.4,234.39,21.1170466]
[1758127680786,0.03,234.4,234.39,21.7970466]
[1758127682004,0.03,234.4,234.39,19.57069562]
[1758127682179,0.03,234.4,234.39,20.27185461]
[1758127682498,0.03,234.4,234.39,22.66070861]
[1758127683012,0.03,234.4,234.39,20.95185461]
[1758127683227,0.03,234.4,234.39,22.66063561]
[1758127683509,0.03,234.4,234.39,20.27185461]
[1758127684310,0.03,234.4,234.39,20.95185461]
[1758127685602,0.03,234.4,234.39,20.27185461]
[1758127686683,0.03,234.4,234.39,13.59559401]
[1758127686684,0.6,234.4,234.39,13.59559401]
[1758127687185,0.6,234.4,234.34,6.77538699]
[1758127687186,33.44,234.4,234.34,6.77538699]
[1758127687376,33.44,234.4,234.34,13.59559401]
[1758127687377,0.57,234.39,234.34,13.59559401]
[1758127687576,0.57,234.38,234.34,13.59559401]
[1758127687779,0.57,234.37,234.34,13.59559401]
[1758127687979,0.57,234.36,234.34,20.27276076]
[1758127688192,0.57,234.36,234.32,2.40986699]
[1758127688398,0.57,234.35,234.33,13.59559401]
[1758127688805,0.57,234.34,234.31,13.59559401]
[1758127689104,0.57,234.33,234.3,13.59559401]
[1758127689302,0.57,234.32,234.3,13.59559401]
[1758127689503,0.57,234.32,234.29,13.59559401]
[1758127689907,2.40986699,234.35,234.29,13.59559401]
[1758127690083,0.57,234.34,234.29,16.005461]
[1758127690283,0.57,234.33,234.29,16.005461]
[1758127691008,0.57,234.33,234.29,20.27367496]
[1758127691613,33.43,234.32,234.27,13.59559401]
[1758127691786,0.57,234.31,234.27,13.59559401]
[1758127691988,0.57,234.3,234.27,13.59559401]
[1758127692689,32.86,234.31,234.27,13.59559401]
[1758127692899,33.43,234.31,234.27,13.59559401]
[1758127693806,0.57,234.31,234.27,17.86416303]
[1758127694109,32.86,234.3,234.27,17.86416303]
[1758127694491,0.57,234.31,234.27,17.86416303]
[1758127694706,32.86,234.3,234.27,17.86416303]
[1758127696421,0.57,234.31,234.27,17.86416303]
[1758127696711,32.86,234.3,234.27,17.86416303]
[1758127697913,32.84,234.3,234.29,13.59559401]
[1758127698121,33.41,234.3,234.26,13.65559401]
[1758127698289,0.57,234.29,234.26,0.06]
[1758127698601,0.57,234.28,234.26,0.06]
[1758127698792,2.97986699,234.28,234.26,0.06]
[1758127698991,0.57,234.27,234.26,0.06]
[1758127699204,26.0,234.3,234.26,0.06]
[1758127699412,32.88,234.29,234.26,0.06]
[1758127699812,26.57,234.3,234.26,0.06]
[1758127699992,32.88,234.28,234.26,0.06]
[1758127700196,2.40986699,234.27,234.26,0.06]
[1758127700408,2.97986699,234.27,234.26,0.06]
[1758127701211,0.57,234.27,234.26,0.06]
[1758127701515,26.57,234.27,234.26,0.06]
[1758127701720,4.26822371,234.29,234.26,0.06]
[1758127701911,0.57,234.37,234.29,13.59559401]
[1758127702222,33.49,234.36,234.34,2.40986699]
[1758127702392,32.92,234.36,234.34,2.40986699]
[1758127702593,32.92,234.36,234.33,2.40986699]
[1758127702820,32.94,234.35,234.33,2.40986699]
[1758127703693,4.29636819,234.4,234.34,16.005461]
[1758127703953,0.03,234.4,234.36,16.005461]
[1758127704125,0.03,234.4,234.39,16.005461]
[1758127704423,32.99,234.4,234.39,16.005461]
[1758127704589,32.99,234.4,234.39,13.59559401]
[1758127707415,35.39986699,234.4,234.39,13.59559401]
[1758127708032,0.03,234.4,234.39,13.59559401]
[1758127708229,32.97,234.4,234.39,14.27559401]
[1758127708420,32.97,234.4,234.39,18.54198762]
[1758127708744,0.03,234.4,234.39,20.95185461]
[1758127709041,0.03,234.4,234.39,18.54198762]
[1758127709218,0.03,234.4,234.39,20.95185461]
[1758127710734,0.03,234.4,234.39,18.54198762]
[1758127710925,0.03,234.4,234.39,20.95185461]
[1758127722636,0.03,234.4,234.39,23.3617216]
[1758127724330,0.03,234.4,234.39,26.76047397]
[1758127724525,0.03,234.4,234.39,27.18711333]
[1758127724946,0.03,234.43,234.42,39.59559401]
[1758127725133,0.03,234.43,234.42,42.005461]
[1758127725335,0.03,234.43,234.42,42.675461]
[1758127725737,1e-08,234.44,234.42,42.675461]
[1758127725936,1e-08,234.44,234.43,16.675461]
[1758127726748,1e-08,234.44,234.43,20.94112665]
[1758127735348,0.03,234.45,234.43,18.53125966]
[1758127735650,0.1,234.5,234.49,13.59559401]
[1758127735965,0.1,234.5,234.49,16.005461]
[1758127736143,0.1,234.5,234.49,20.27003518]
[1758127736568,0.1,234.5,234.49,20.94003518]
[1758127739274,0.1,234.5,234.49,18.53016819]
[1758127739467,0.1,234.5,234.49,20.94003518]
[1758127741861,0.1,234.5,234.49,20.07097676]
[1758127743571,0.1,234.5,234.49,18.53016819]
[1758127743757,0.1,234.5,234.49,20.07097676]
[1758127746055,0.1,234.5,234.49,17.86016819]
[1758127746268,0.1,234.5,234.49,19.40097676]
[1758127747879,0.1,234.5,234.49,20.11097676]
[1758127762174,0.1,234.5,234.49,17.86016819]
[1758127762376,0.67,234.5,234.49,17.86016819]
[1758127762577,0.67,234.5,234.46,13.59559401]
[1758127762881,0.57,234.49,234.46,15.13640258]
[1758127763186,0.57,234.48,234.46,15.13640258]
[1758127764386,0.57,234.48,234.47,17.86053195]
[1758127765978,0.57,234.48,234.47,13.59559401]
[1758127766290,0.57,234.48,234.47,17.86053195]
[1758127766582,0.1,234.5,234.47,17.86053195]
[1758127766773,0.67,234.5,234.47,17.86053195]
[1758127767091,1.54080857,234.48,234.47,13.59559401]
[1758127767392,2.11080857,234.48,234.47,13.59559401]
[1758127767896,39.17556462,234.48,234.47,13.59559401]
[1758127768293,34.91080857,234.48,234.47,13.59559401]
[1758127768796,2.11080857,234.48,234.47,13.59559401]
[1758127769298,33.37,234.48,234.47,13.59559401]
[1758127770794,32.8,234.48,234.47,13.59559401]
[1758127770987,0.57,234.48,234.47,13.59559401]
[1758127771183,0.1,234.5,234.48,13.59559401]
[1758127771389,32.8,234.49,234.46,17.86071385]
[1758127771795,0.57,234.48,234.45,13.65559401]
[1758127771986,0.57,234.47,234.45,13.65559401]
[1758127772308,0.57,234.47,234.45,0.06]
[1758127772508,32.8,234.49,234.45,0.06]
[1758127772685,33.37,234.49,234.45,0.06]
[1758127772883,32.8,234.48,234.46,13.59559401]
[1758127773211,0.1,234.5,234.45,19.46165483]
[1758127773415,32.8,234.49,234.46,13.59559401]
[1758127774085,33.37,234.49,234.46,17.86060786]
[1758127774477,0.1,234.5,234.46,17.86060786]
[1758127774679,32.8,234.49,234.46,17.86060786]
[1758127774912,33.37,234.49,234.46,17.86060786]
[1758127775313,33.37,234.49,234.47,13.59559401]
[1758127775614,32.8,234.48,234.46,17.86071385]
[1758127775800,0.1,234.5,234.46,17.86071385]
[1758127775801,32.8,234.47,234.46,17.86071385]
[1758127776895,0.1,234.5,234.46,18.53071385]
[1758127777101,0.1,234.5,234.46,19.40152242]
[1758127777404,32.8,234.49,234.46,19.40152242]
[1758127777596,32.8,234.49,234.47,0.67]